bitfinex/quotes_SOLUSD_20240716
["timestamp","ask_amount","ask_price","bid_price","bid_amount"]
[1721146010875,10.0,161.7,161.56,0.8286455]
[1721146011077,10.0,161.7,161.61,6.1873]
[1721146011246,10.0,161.7,161.6,6.188]
[1721146011648,10.0,161.7,161.58,15.4718]
[1721146011858,10.0,161.68,161.56,0.8286455]
[1721146012651,10.0,161.63,161.56,0.8286455]
[1721146012868,20.17,161.62,161.56,0.8286455]
[1721146013058,6.4332,161.61,161.56,0.8286455]
[1721146013273,20.17,161.6,161.56,0.8286455]
[1721146013674,0.17,161.59,161.56,0.8286455]
[1721146014278,18.56,161.58,161.56,0.8286455]
[1721146014475,48.9,161.57,161.56,0.8286455]
[1721146014774,48.9,161.57,161.56,0.4686455]
[1721146014970,100.0892,161.57,161.56,0.4686455]
[1721146015159,75.34,161.57,161.56,0.4686455]
[1721146015563,81.5292,161.57,161.56,0.4686455]
[1721146015957,75.34,161.57,161.56,0.4686455]
[1721146016160,81.5292,161.57,161.56,0.4686455]
[1721146016475,10.0,161.53,161.41,22.89680067]
[1721146016683,20.34,161.52,161.4,0.8286455]
[1721146016980,0.17,161.51,161.45,6.1938]
[1721146017163,0.34,161.51,161.4,16.3177455]
[1721146017364,0.34,161.51,161.45,6.1935]
[1721146017572,0.17,161.5,161.4,0.8286455]
[1721146017880,0.17,161.49,161.42,6.1947]
[1721146018184,0.17,161.49,161.44,6.1941]
[1721146018478,0.17,161.49,161.43,6.1945]
[1721146018655,0.17,161.49,161.42,6.1949]
[1721146019083,0.17,161.49,161.41,15.4878]
[1721146019382,0.17,161.49,161.42,6.195]
[1721146019698,0.17,161.49,161.42,6.1947]
[1721146019985,0.17,161.49,161.41,15.4878]
[1721146020177,0.17,161.49,161.41,21.6829]
[1721146020476,0.17,161.49,161.4,0.8286455]
[1721146020976,0.17,161.49,161.4,7.0243455]
[1721146021179,0.17,161.49,161.4,0.8286455]
[1721146021358,10.0,161.48,161.4,0.8286455]
[1721146021559,6.5593,161.46,161.4,0.8286455]
[1721146021762,20.34,161.45,161.4,0.8286455]
[1721146022081,16.1948,161.43,161.4,0.8286455]
[1721146022277,16.1954,161.41,161.4,0.4686455]
[1721146022476,55.0,161.41,161.4,0.4686455]
[1721146022663,75.0,161.41,161.4,0.4686455]
[1721146022854,93.56,161.41,161.4,0.4686455]
[1721146023055,75.0,161.41,161.4,0.4686455]
[1721146023274,10.0,161.34,161.24,16.9890455]
[1721146023478,10.0,161.36,161.24,16.9890455]
[1721146023668,20.0,161.35,161.24,16.9890455]
[1721146024260,20.0,161.35,161.29,6.2]
[1721146024579,0.34,161.34,161.24,16.9890455]
[1721146024758,0.34,161.34,161.24,0.8286455]
[1721146024965,10.0,161.33,161.24,0.8286455]
[1721146025161,10.0,161.28,161.24,0.8286455]
[1721146025479,20.17,161.27,161.24,0.8286455]
[1721146025784,0.34,161.27,161.24,0.8286455]
[1721146026079,6.2012,161.26,161.24,0.8286455]
[1721146026382,0.17,161.25,161.24,0.8286455]
[1721146026580,16.422,161.31,161.24,0.8286455]
[1721146026793,6.422,161.31,161.24,0.8286455]
[1721146026966,6.5745,161.39,161.32,6.1985]
[1721146027166,10.0,161.41,161.26,15.5022]
[1721146027568,10.0,161.41,161.29,6.1998]
[1721146027861,10.0,161.43,161.24,0.8286455]
[1721146028061,10.0,161.41,161.28,15.5005]
[1721146028271,10.0,161.36,161.24,0.8286455]
[1721146028475,10.0,161.34,161.24,0.8286455]
[1721146028779,10.0,161.33,161.24,0.8286455]
[1721146029282,20.0,161.32,161.24,0.8286455]
[1721146029490,0.17,161.32,161.24,0.8286455]
[1721146029663,10.0,161.39,161.29,6.1998]
[1721146029857,10.0,161.41,161.26,15.5026]
[1721146030063,6.47574036,161.44,161.34,15.4945]
[1721146030476,6.47574036,161.44,161.32,16.0116]
[1721146030765,6.47574036,161.44,161.35,6.1976]
[1721146030988,6.47574036,161.44,161.32,31.5085]
[1721146031177,6.47574036,161.44,161.32,16.0116]
[1721146031385,6.47574036,161.44,161.32,31.5085]
[1721146031565,10.0,161.43,161.32,16.0116]
[1721146031768,6.47574036,161.44,161.32,16.0116]
[1721146032663,10.0,161.39,161.26,16.4158]
[1721146032989,10.0,161.36,161.26,16.4158]
[1721146033297,10.0,161.32,161.24,0.8286455]
[1721146033594,20.34,161.31,161.24,0.8286455]
[1721146033766,0.34,161.31,161.24,0.8286455]
[1721146034663,10.0,161.29,161.24,0.8286455]
[1721146034867,20.34,161.28,161.24,0.8286455]
[1721146035294,6.41177168,161.38,161.24,0.8286455]
[1721146035481,10.0,161.36,161.24,22.5342455]
[1721146035687,16.41177168,161.38,161.24,16.3325455]
[1721146035994,10.0,161.31,161.24,0.8286455]
[1721146036378,10.0,161.33,161.24,0.8286455]
[1721146036588,28.56,161.29,161.24,0.8286455]
[1721146036771,0.34,161.28,161.24,0.8286455]
[1721146037093,6.41177168,161.38,161.28,15.5002]
[1721146037294,10.0,161.37,161.24,16.3325455]
[1721146037470,6.41177168,161.38,161.24,16.3325455]
[1721146037671,24.97177168,161.38,161.27,15.5016]
[1721146037866,10.0,161.37,161.24,0.8286455]
[1721146038094,18.56,161.33,161.24,0.8286455]
[1721146038307,6.2014,161.26,161.24,0.8286455]
[1721146038593,10.0,161.27,161.24,0.8286455]
[1721146038768,15.4978,161.32,161.24,0.8286455]
[1721146038769,10.0,161.26,161.24,0.8286455]
[1721146038976,10.0,161.24,161.22,0.03895467]
[1721146039178,20.0,161.23,161.22,0.03895467]
[1721146039481,10.0,161.16,161.05,15.84927846]
[1721146039704,30.0,161.15,161.05,15.84927846]
[1721146039870,10.0,161.21,161.12,6.2064]
[1721146040066,10.0,161.21,161.09,15.519]
[1721146040395,10.0,161.17,161.05,22.05827846]
[1721146040581,10.0,161.15,161.08,0.3336685]
[1721146040769,20.0,161.16,161.08,0.3336685]
[1721146040770,10.0,161.12,161.08,0.3336685]
[1721146040965,30.0,161.11,161.08,0.3336685]
[1721146041299,10.0,161.09,161.08,0.3336685]
[1721146041469,30.34,161.09,161.08,0.3336685]
[1721146041867,20.34,161.09,161.08,0.3336685]
[1721146042090,30.34,161.09,161.08,0.3336685]
[1721146042294,30.34,161.09,161.05,0.34437846]
[1721146042295,10.0,161.06,161.05,0.34437846]
[1721146042479,30.0,161.06,161.05,0.34437846]
[1721146042675,75.0,161.06,161.05,0.34437846]
[1721146042892,93.56,161.06,161.05,0.34437846]
[1721146043298,133.56,161.06,161.05,0.34437846]
[1721146043476,10.0,161.02,161.0,0.8699065]
[1721146043676,20.0,161.01,161.0,0.8699065]
[1721146044079,20.0,161.01,160.78,46.5169]
[1721146044080,10.0,160.97,160.78,46.5169]
[1721146044282,10.0,160.98,160.78,46.5169]
[1721146044488,30.17,160.96,160.78,46.5169]
[1721146044802,40.29,161.04,160.78,46.5169]
[1721146044803,10.0,161.03,160.91,15.5363]
[1721146045097,10.0,161.0,160.9,15.537]
[1721146045276,10.0,160.96,160.83,0.8699065]
[1721146045479,20.0,160.95,160.83,0.8699065]
[1721146045675,10.0,160.98,160.83,0.8699065]
[1721146045877,10.0,161.03,160.85,15.5422]
[1721146046172,10.0,160.91,160.83,0.8699065]
[1721146046376,20.34,160.9,160.83,0.8699065]
[1721146046583,10.0,160.89,160.83,0.8699065]
[1721146046894,10.0,160.87,160.83,0.8699065]
[1721146047099,0.34,160.86,160.83,0.8699065]
[1721146047274,10.0,160.85,160.83,0.8699065]
[1721146047592,0.17,160.84,160.83,0.8699065]
[1721146047792,20.17,160.84,160.83,0.8699065]
[1721146048090,65.17,160.84,160.83,0.5099065]
[1721146048390,83.73,160.84,160.83,0.5099065]
[1721146048595,38.73,160.84,160.83,0.5099065]
[1721146048779,6.49733884,160.84,160.83,0.5099065]
[1721146048978,0.17,160.84,160.83,0.5099065]
[1721146049172,18.73,160.84,160.83,0.5099065]
[1721146049378,154.02,160.84,160.83,0.5099065]
[1721146049619,135.46,160.84,160.83,0.5099065]
[1721146049777,135.46,160.84,160.83,0.3299065]
[1721146050095,10.0,160.83,160.73,0.03907343]
[1721146050274,10.0,160.8,160.73,0.03907343]
[1721146050471,10.0,160.8,160.73,6.26037343]
[1721146050675,10.0,160.76,160.73,0.03907343]
[1721146050876,30.0,160.78,160.74,15.5527]
[1721146051090,30.0,160.83,160.73,0.03907343]
[1721146051289,10.0,160.82,160.78,6.2196]
[1721146051494,10.0,160.83,160.76,15.5506]
[1721146051809,10.0,160.84,160.76,15.5506]
[1721146051976,6.34762124,160.82,160.74,6.2211]
[1721146052179,6.34762124,160.82,160.75,15.5512]
[1721146052476,10.0,160.84,160.75,6.2206]
[1721146052687,6.33636148,160.81,160.77,15.5494]
[1721146052873,10.0,160.85,160.76,6.2202]
[1721146053206,16.3466044,160.81,160.73,0.03907343]
[1721146053377,10.0,160.81,160.73,0.03907343]
[1721146053574,6.50845239,160.8,160.73,0.03907343]
[1721146054003,0.17,160.8,160.73,0.03907343]
[1721146054297,0.17,160.8,160.77,6.2199]
[1721146054485,10.0,160.84,160.76,15.551]
[1721146054702,10.0,160.9,160.79,15.5473]
[1721146055296,10.0,160.88,160.79,15.5473]
[1721146055511,10.0,160.93,160.82,15.5444]
[1721146055873,10.0,160.99,160.73,0.03907343]
[1721146055874,10.0,160.89,160.73,0.03907343]
[1721146056079,10.0,160.89,160.79,6.2192]
[1721146056297,10.0,160.87,160.73,0.03907343]
[1721146056500,10.0,160.85,160.73,0.03907343]
[1721146056801,10.0,160.86,160.77,6.2197]
[1721146056994,10.0,160.8,160.73,0.03907343]
[1721146057307,10.0,160.82,160.73,0.03907343]
[1721146057501,6.33855891,160.85,160.73,0.03907343]
[1721146057677,6.33855891,160.85,160.78,6.2195]
[1721146057989,10.0,160.83,160.73,0.03907343]
[1721146058188,10.0,160.77,160.73,0.03907343]
[1721146058407,40.29,160.83,160.73,0.03907343]
[1721146058408,10.0,160.79,160.73,0.03907343]
[1721146058782,30.0,160.78,160.73,0.03907343]
[1721146059086,6.33855891,160.85,160.73,0.03907343]
[1721146059592,6.33855891,160.85,160.79,21.7668]
[1721146059797,6.33855891,160.85,160.73,0.03907343]
[1721146059798,10.0,160.91,160.78,6.2195]
[1721146059980,6.32698593,160.88,160.79,6.2189]
[1721146060318,10.0,160.95,160.73,0.03907343]
[1721146060479,6.33083321,160.9,160.83,6.2176]
[1721146060684,18.56,160.96,160.84,6.2172]
[1721146060908,18.56,160.96,160.82,6.2178]
[1721146061103,18.56,160.96,160.8,16.4224]
[1721146061104,6.32536237,160.91,160.8,16.4224]
[1721146061407,18.56,160.89,160.8,16.4224]
[1721146061591,18.56,160.85,160.73,0.03907343]
[1721146061783,10.0,160.89,160.73,0.03907343]
[1721146061991,6.32021166,160.9,160.76,6.2201]
[1721146062316,6.32021166,160.9,160.73,15.59287343]
[1721146062605,6.32021166,160.9,160.78,6.2196]
[1721146062904,6.32021166,160.9,160.79,21.7669]
[1721146063108,6.32021166,160.9,160.77,6.2197]
[1721146063320,6.32021166,160.9,160.75,21.772]
[1721146063486,24.88021166,160.9,160.76,45.0]
[1721146063691,6.32021166,160.9,160.76,51.2203]
[1721146063889,6.32021166,160.9,160.76,45.0]
[1721146064092,6.32021166,160.9,160.75,15.5513]
[1721146064300,45.0,160.89,160.75,15.5513]
[1721146064505,45.0,160.89,160.76,6.2204]
[1721146064740,24.88021166,160.9,160.75,15.5513]
[1721146064890,18.56,160.88,160.75,15.5513]
[1721146065085,45.17,160.89,160.73,0.03907343]
[1721146065086,18.56,160.85,160.73,0.03907343]
[1721146065310,6.3862,160.87,160.73,0.03907343]
[1721146065311,0.17,160.84,160.73,0.03907343]
[1721146065496,18.56,160.86,160.73,0.03907343]
[1721146065695,18.56,160.84,160.73,0.03907343]
[1721146065910,45.0,160.85,160.73,0.03907343]
[1721146066096,0.17,160.84,160.73,0.03907343]
[1721146066413,0.17,160.84,160.79,6.2191]
[1721146066588,24.7759,160.88,160.73,21.81447343]
[1721146066785,0.17,160.87,160.73,0.03907343]
[1721146067307,18.56,160.85,160.73,45.03907343]
[1721146067490,0.17,160.84,160.73,0.03907343]
[1721146068791,18.56,160.87,160.73,0.03907343]
[1721146068990,56.7885,160.89,160.73,0.03907343]
[1721146069188,18.56,160.84,160.73,0.03907343]
[1721146069399,45.0,160.88,160.73,0.03907343]
[1721146069400,55.0,160.88,160.73,0.03907343]
[1721146069597,16.2212,160.74,160.73,0.03907343]
[1721146069913,45.0,160.74,160.66,0.8699065]
[1721146070110,10.0,160.79,160.66,7.0939065]
[1721146070313,10.0,160.84,160.69,6.2228]
[1721146070618,10.0,160.84,160.66,0.8699065]
[1721146070619,10.0,160.76,160.66,0.8699065]
[1721146070912,10.0,160.81,160.67,15.559]
[1721146071114,18.56,160.76,160.66,0.8699065]
[1721146071414,10.0,160.82,160.66,0.8699065]
[1721146071617,20.0,160.81,160.66,0.8699065]
[1721146071912,10.0,160.77,160.66,0.8699065]
[1721146072230,18.56,160.74,160.66,0.8699065]
[1721146072399,6.49,160.71,160.66,0.8699065]
[1721146072599,18.56,160.67,160.66,0.8699065]
[1721146072903,0.17,160.67,160.66,0.8699065]
[1721146073114,18.73,160.67,160.66,0.8699065]
[1721146073520,18.73,160.67,160.51,15.1343]
[1721146073521,63.73,160.67,160.51,15.1343]
[1721146073811,36.2225,160.71,160.51,15.1343]
[1721146074112,63.73,160.7,160.51,15.1343]
[1721146074291,0.17,160.7,160.59,6.2269]
[1721146074492,0.17,160.7,160.56,15.5697]
[1721146074729,0.17,160.7,160.53,6.2292]
[1721146074898,0.17,160.7,160.52,15.5739]
[1721146074899,10.17,160.7,160.52,15.5739]
[1721146075097,10.17,160.7,160.56,15.5703]
[1721146075098,0.17,160.7,160.56,15.5703]
[1721146075300,0.17,160.7,160.59,15.5668]
[1721146075610,0.17,160.7,160.51,15.1343]
[1721146075611,6.32233121,160.69,160.56,6.2281]
[1721146075811,6.32233121,160.69,160.54,15.5717]
[1721146076036,10.17,160.68,160.52,6.2297]
[1721146076348,28.73,160.68,160.51,15.1343]
[1721146076518,28.73,160.68,160.51,21.3643]
[1721146076519,18.56,160.66,160.51,21.3643]
[1721146076715,6.32233121,160.69,160.51,15.1343]
[1721146076716,24.7852,160.64,160.51,15.1343]
[1721146076924,0.17,160.63,160.51,15.1343]
[1721146077144,18.73,160.64,160.51,15.1343]
[1721146077319,18.56,160.62,160.51,15.1343]
[1721146077516,0.17,160.61,160.51,15.1343]
[1721146078258,10.0,160.66,160.51,15.1343]
[1721146078455,16.32233121,160.69,160.59,6.227]
[1721146078748,16.32233121,160.69,160.53,31.1458]
[1721146078749,16.32233121,160.69,160.53,15.5727]
[1721146078914,10.0,160.67,160.51,15.1343]
[1721146079116,10.0,160.64,160.51,15.1343]
[1721146079316,10.0,160.64,160.52,45.0]
[1721146079545,10.0,160.64,160.51,15.1343]
[1721146079710,16.2255,160.63,160.51,15.1343]
[1721146079912,10.0,160.61,160.51,15.1343]
[1721146080241,0.17,160.6,160.51,15.1343]
[1721146080548,0.17,160.58,160.43,32.2338948]
[1721146080719,0.17,160.58,160.46,15.58]
[1721146080920,0.17,160.58,160.43,1.0689948]
[1721146081134,45.17,160.59,160.43,1.0689948]
[1721146081343,0.17,160.59,160.45,6.2323]
[1721146081544,0.17,160.59,160.46,1.24599834]
[1721146081720,10.0,160.64,160.5,6.2304]
[1721146081915,10.0,160.62,160.48,15.5778]
[1721146082124,10.0,160.64,160.51,15.5744]
[1721146082351,10.0,160.64,160.54,15.572]
[1721146082515,46.5374,160.66,160.54,15.572]
[1721146082516,6.2474,160.66,160.54,15.572]
[1721146082716,10.0,160.67,160.54,15.6883]
[1721146083015,10.0,160.63,160.54,15.6883]
[1721146083214,10.0,160.64,160.49,16.93410973]
[1721146083421,10.0,160.6,160.49,16.93406144]
[1721146083620,10.0,160.6,160.49,15.6883]
[1721146083847,10.0,160.6,160.5,45.0]
[1721146084064,0.17,160.59,160.5,45.0]
[1721146084219,0.17,160.59,160.5,46.24596552]
[1721146084534,0.17,160.59,160.5,45.0]
[1721146085138,16.32233121,160.69,160.5,45.0]
[1721146085139,10.0,160.65,160.5,45.0]
[1721146085328,10.0,160.65,160.54,6.2289]
[1721146085525,56.8186,160.71,160.55,45.0]
[1721146085526,10.0,160.67,160.55,45.0]
[1721146085838,6.31916914,160.64,160.55,45.0]
[1721146086038,10.0,160.72,160.6,6.2264]
[1721146086218,6.32102269,160.69,160.61,45.0]
[1721146086418,6.32102269,160.69,160.62,15.975]
[1721146086640,6.368,160.77,160.63,45.0]
[1721146086853,6.368,160.77,160.63,51.2252]
[1721146086854,6.32807677,160.72,160.63,51.2252]
[1721146087021,10.0,160.76,160.63,51.2252]
[1721146087022,10.0,160.76,160.63,45.0]
[1721146087435,6.32898979,160.72,160.63,57.8347]
[1721146087636,10.0,160.76,160.63,45.0]
[1721146087856,16.32889972,160.72,160.62,15.975]
[1721146088031,10.0,160.7,160.62,15.975]
[1721146088439,18.56,160.68,160.62,15.975]
[1721146088757,6.33159126,160.71,160.58,6.6096]
[1721146088933,0.17,160.7,160.58,6.6096]
[1721146089126,10.17,160.7,160.58,6.6096]
[1721146089334,10.0,160.68,160.58,6.6096]
[1721146089544,18.56,160.66,160.56,16.5629]
[1721146089770,18.56,160.61,160.49,15.5772]
[1721146090056,10.17,160.66,160.51,15.5747]
[1721146090264,10.17,160.66,160.48,16.4861]
[1721146090558,18.56,160.65,160.53,6.2293]
[1721146090762,18.56,160.65,160.54,6.2289]
[1721146090926,6.3403,160.68,160.48,22.7171]
[1721146090927,18.56,160.61,160.48,22.7171]
[1721146091141,10.0,160.62,160.49,1.2459225]
[1721146091374,0.17,160.61,160.49,1.24585874]
[1721146091581,18.56,160.65,160.5,15.5761]
[1721146091744,18.73,160.65,160.5,15.5761]
[1721146092071,10.0,160.68,160.55,6.2285]
[1721146092261,10.0,160.66,160.53,15.5732]
[1721146092439,10.0,160.66,160.54,6.2288]
[1721146092636,18.56,160.68,160.56,21.8706]
[1721146092836,10.0,160.7,160.57,45.0]
[1721146093143,10.0,160.7,160.57,51.2276]
[1721146093441,6.33159126,160.71,160.57,45.0]
[1721146093643,6.33159126,160.71,160.59,15.2286]
[1721146093955,16.33159126,160.71,160.6,45.0]
[1721146094536,18.56,160.7,160.6,45.0]
[1721146094941,18.56,160.67,160.59,15.2286]
[1721146095456,10.0,160.67,160.59,15.2286]
[1721146095770,6.33159126,160.71,160.59,15.2286]
[1721146096266,10.0,160.68,160.59,15.2286]
[1721146096448,10.0,160.7,160.59,15.2286]
[1721146096646,18.56,160.7,160.59,15.2286]
[1721146097038,28.56,160.7,160.59,15.2286]
[1721146097374,6.2247,160.65,160.59,15.2286]
[1721146097542,34.7855,160.63,160.53,16.4675]
[1721146097869,18.56,160.68,160.56,6.228]
[1721146098155,28.56,160.66,160.53,16.4675]
[1721146098342,28.56,160.66,160.57,15.5692]
[1721146098543,28.56,160.66,160.54,15.5724]
[1721146098757,6.34160732,160.65,160.58,6.2274]
[1721146098937,24.90160732,160.65,160.57,15.5692]
[1721146099137,6.34160732,160.65,160.57,15.5692]
[1721146099355,10.0,160.69,160.57,21.7966]
[1721146099555,10.0,160.71,160.57,15.5692]
[1721146099774,6.33859623,160.69,160.57,15.5692]
[1721146099941,16.33859623,160.69,160.57,15.5692]
[1721146100137,10.0,160.67,160.57,15.5692]
[1721146100444,10.0,160.68,160.53,32.04]
[1721146100638,0.17,160.66,160.53,16.4675]
[1721146100839,18.56,160.68,160.54,1.24527159]
[1721146101043,6.33859623,160.69,160.59,6.2266]
[1721146101267,10.0,160.68,160.54,60.572]
[1721146101560,10.0,160.67,160.57,6.2277]
[1721146101860,28.56,160.66,160.56,6.2281]
[1721146102169,18.56,160.63,160.53,16.4675]
[1721146102658,18.56,160.61,160.53,16.4675]
[1721146103159,18.56,160.59,160.53,16.4675]
[1721146103458,18.56,160.61,160.53,16.4675]
[1721146103634,0.17,160.58,160.53,16.4675]
[1721146104059,16.5858,160.66,160.53,32.0406]
[1721146104240,10.0,160.64,160.53,16.4675]
[1721146104448,10.0,160.61,160.53,16.4675]
[1721146104641,18.56,160.62,160.53,16.4675]
[1721146105348,6.2242,160.67,160.53,16.4675]
[1721146105349,10.0,160.67,160.53,16.4675]
[1721146105551,18.56,160.66,160.53,32.0399]
[1721146105753,10.0,160.62,160.47,1.24549006]
[1721146105937,10.0,160.62,160.43,1.0689948]
[1721146105938,45.13,160.58,160.46,15.0064]
[1721146106140,18.56,160.55,160.46,15.0064]
[1721146106439,10.0,160.62,160.51,6.23]
[1721146106639,20.0,160.65,160.51,15.5747]
[1721146106942,10.0,160.62,160.46,15.0064]
[1721146107245,10.0,160.56,160.46,15.0064]
[1721146107438,10.0,160.59,160.46,15.0064]
[1721146107634,18.56,160.58,160.46,15.0064]
[1721146107848,10.0,160.6,160.46,16.25264513]
[1721146108046,16.5007,160.66,160.47,1.24597027]
[1721146108238,16.5007,160.66,160.55,21.7995]
[1721146108448,6.5007,160.66,160.55,21.7995]
[1721146108652,18.56,160.63,160.53,6.2291]
[1721146108843,16.5007,160.66,160.54,15.572]
[1721146109043,10.0,160.68,160.54,15.572]
[1721146109336,10.0,160.67,160.54,15.572]
[1721146109803,18.56,160.66,160.55,45.0]
[1721146109970,18.56,160.64,160.54,15.572]
[1721146110263,10.0,160.65,160.54,15.572]
[1721146110466,10.0,160.63,160.51,6.23]
[1721146110666,18.56,160.64,160.52,6.2296]
[1721146110876,6.34852967,160.66,160.53,15.573]
[1721146111166,6.34852967,160.66,160.55,6.2282]
[1721146111337,6.34852967,160.66,160.53,15.573]
[1721146111536,6.34852967,160.66,160.54,6.1723]
[1721146111776,18.56,160.65,160.54,6.1723]
[1721146112142,6.34852967,160.66,160.56,15.57]
[1721146112345,6.34852967,160.66,160.56,21.7981]
[1721146112544,6.34852967,160.66,160.56,15.57]
[1721146112856,24.90852967,160.66,160.56,21.7979]
[1721146113050,6.34852967,160.66,160.56,15.57]
[1721146113260,26.2433,160.71,160.59,6.227]
[1721146113442,10.0,160.67,160.57,15.9941]
[1721146113644,18.56,160.64,160.57,15.9941]
[1721146113844,28.56,160.63,160.54,6.1723]
[1721146114042,28.56,160.59,160.51,15.9941]
[1721146114276,10.0,160.6,160.51,15.9941]
[1721146114478,10.0,160.6,160.45,15.7521]
[1721146114479,10.0,160.58,160.45,15.7521]
[1721146114647,18.56,160.58,160.45,15.7521]
[1721146114854,0.17,160.57,160.45,15.7521]
[1721146115648,0.17,160.57,160.47,6.2316]
[1721146115878,0.17,160.57,160.46,21.8113]
[1721146116175,0.17,160.57,160.46,15.5793]
[1721146116372,45.0,160.59,160.48,6.2312]
[1721146116555,10.0,160.64,160.48,15.5773]
[1721146116880,10.0,160.64,160.51,15.5753]
[1721146117079,10.0,160.59,160.46,15.5794]
[1721146117378,18.56,160.58,160.46,15.5794]
[1721146117576,10.0,160.61,160.46,15.5794]
[1721146117758,10.0,160.63,160.48,15.5773]
[1721146118249,18.56,160.62,160.49,45.0]
[1721146118671,18.56,160.62,160.5,6.2301]
[1721146118873,10.0,160.65,160.51,45.0]
[1721146119174,10.0,160.65,160.49,45.0]
[1721146119493,10.0,160.64,160.51,15.5752]
[1721146119649,10.0,160.64,160.52,45.0]
[1721146119976,10.0,160.64,160.52,51.2296]
[1721146120355,18.56,160.63,160.52,51.2296]
[1721146120551,18.56,160.63,160.53,15.5725]
[1721146120969,18.56,160.63,160.53,6.2292]
[1721146121191,18.56,160.63,160.46,31.1602]
[1721146121394,18.56,160.63,160.54,6.2288]
[1721146121602,18.56,160.63,160.52,21.803]
[1721146121778,18.56,160.63,160.53,45.0]
[1721146122094,0.17,160.62,160.5,6.2302]
[1721146122312,10.17,160.62,160.51,51.23]
[1721146122590,10.17,160.62,160.45,46.9137]
[1721146122591,18.56,160.57,160.46,15.5801]
[1721146122974,0.17,160.56,160.49,6.2309]
[1721146123295,0.17,160.56,160.5,6.2304]
[1721146123497,0.17,160.56,160.45,15.7521]
[1721146123687,45.0,160.57,160.46,21.8113]
[1721146123869,0.17,160.56,160.46,21.8113]
[1721146124065,18.73,160.56,160.45,15.7521]
[1721146124290,35.07853678,160.56,160.45,21.9842]
[1721146124504,35.07853678,160.56,160.45,15.7521]
[1721146124791,35.07853678,160.56,160.45,21.9844]
[1721146124993,18.56,160.53,160.45,15.7521]
[1721146125397,18.56,160.53,160.43,1.0689948]
[1721146125607,0.17,160.52,160.43,1.0689948]
[1721146125889,0.17,160.52,160.43,7.3020948]
[1721146126091,18.56,160.51,160.43,1.0689948]
[1721146126289,10.0,160.52,160.43,1.0689948]
[1721146126481,0.17,160.51,160.43,7.3020948]
[1721146126684,0.17,160.51,160.43,1.0689948]
[1721146126886,10.17,160.51,160.43,1.0689948]
[1721146127198,10.0,160.48,160.43,1.0689948]
[1721146127370,18.56,160.49,160.43,1.0689948]
[1721146127564,18.56,160.47,160.43,1.0689948]
[1721146128073,0.17,160.46,160.43,1.0689948]
[1721146129986,18.56,160.5,160.43,1.0689948]
[1721146130183,6.2947,160.55,160.46,6.2316]
[1721146130412,16.34853678,160.56,160.44,15.5815]
[1721146130609,16.34853678,160.56,160.45,45.0]
[1721146130784,6.34853678,160.56,160.48,6.2312]
[1721146130984,6.34853678,160.56,160.46,16.4473]
[1721146131182,6.34853678,160.56,160.43,16.6517948]
[1721146131379,10.0,160.54,160.44,45.0]
[1721146131607,10.0,160.54,160.43,16.6517948]
[1721146131907,18.56,160.53,160.43,16.6517948]
[1721146132114,6.34853678,160.56,160.47,6.2314]